Cogmind - Beta 13 @@@ ROGUE MODE // 2024.05.29 @ 15:04:14 Player: Ragemodebzrk Result: Destroyed by L-31 Rogue with Katana Performance ------------- Evolutions (1) 500 Regions Visited (3) 600 Robots Destroyed (29) 145 Value Destroyed (867) 867 Prototype IDs (3) 60 Alien Tech Used (0) 0 Bonus (145) 145 TOTAL SCORE: 2317 Bonus ------- Follower Combat Kills 145 Cogmind --------- Core Integrity 0/400 Matter 284/300 Energy 90/100 System Corruption 18% Temperature Cool (0) Movement Core (50) Location -9/Storage Parts ------- > --- POWER (1) -------- (None) > --- PROPULSION (2) --- (None) > --- UTILITY (4) ------ Signal Interpreter Utility Shielding > --- WEAPON (2) ------- Small Laser > --- INVENTORY (5) ---- Salvage Targeting Computer Hardened Light Armor Plating Peak State ------------ > --- POWER ------------ Light Nuclear Core > --- PROPULSION ------- Armored Wheel Armored Wheel > --- UTILITY ---------- Weight Redist. System Sensor Array Signal Interpreter Improved Targeting Computer > --- WEAPON ----------- Spread Laser Spread Laser > --- INVENTORY -------- (None) [Rating: 17] Favorites ----------- Power Light Ion Engine Engine Light Ion Engine Power Core Light Nuclear Core Propulsion Aluminum Leg Treads Light Treads Leg Aluminum Leg Wheel Armored Wheel Hover Unit Hover Unit Flight Unit VTOL Module Utility Small Storage Unit Device Sensor Array Storage Small Storage Unit Processor Improved Targeting Computer Protection Power Shielding Weapon Assault Rifle Energy Gun EM Pulse Gun Ballistic Gun Assault Rifle Build | -11 -10 -9 -9 ------- Run | Yrd Mat Mat Sto Slots Evolved 2 | . . 2 . Power . | . . . . Propulsion . | . . . . Utility 2 | . . 2 . Weapon . | . . . . Parts Attached 37 | 6 5 21 5 Power 4 | 1 . 2 1 Engine 3 | 1 . 1 1 Core 1 | . . 1 . Reactor . | . . . . Propulsion 11 | 2 2 7 . Treads 2 | 2 . . . Leg 2 | . 2 . . Wheel 5 | . . 5 . Hover 1 | . . 1 . Flight 1 | . . 1 . Utility 11 | 1 1 9 . Device 3 | . . 3 . Storage 1 | 1 . . . Processor 3 | . . 3 . Hackware . | . . . . Protection 4 | . 1 3 . Artifact . | . . . . Weapon 11 | 2 2 3 4 Energy Gun 7 | 1 2 3 1 Energy Cannon . | . . . . Ballistic Gun 4 | 1 . . 3 Ballistic Cannon . | . . . . Launcher . | . . . . Special Weapon . | . . . . Impact Weapon . | . . . . Slashing Weapon . | . . . . Piercing Weapon . | . . . . Special Melee Weapon . | . . . . Unidentified Prototypes 1 | . . . 1 Corrupted Parts 2 | . 2 . . System Corruption 4 | . 4 . . Parts Lost 20 | . 6 9 5 Power 4 | . 1 2 1 Propulsion 5 | . 2 2 1 Utility 5 | . . 3 2 Weapon 6 | . 3 2 1 Highest Loss Streak 7 | . 3 7 5 To Critical Strikes 1 | . . 1 . Average Slot Usage (%) 79 | . 89 68 90 Engine 7 | . 12 2 6 Core 2 | . . 5 . Treads 3 | . 7 . . Leg 6 | . 15 . . Wheel 6 | . . 9 20 Device 4 | . . 6 9 Storage 9 | . 14 7 . Processor 6 | . . 9 22 Protection 12 | . 13 12 11 Energy Gun 12 | . 13 12 6 Ballistic Gun 5 | . 10 . 14 Naked Turns . | . . . . Heaviest Build 15 | 12 13 15 13 Greatest Support 40 | 40 40 32 24 Greatest Overweight (x) 4 | . 2 4 . Average Overweight (x) . | . . . . Largest Inventory Capacity 8 | 8 8 8 5 Average Capacity 7 | 6 8 7 5 Most Carried 5 | 5 4 4 5 Average Carried 1 | . 2 . 3 Final Capacity 8 | 8 8 5 5 Final Carried 4 | . 3 4 2 Class Distribution -------------------- 95% | Mutant 4% | Scavenger-Mutant Dominant Class ---------------- Mutant | -10/Materials Mutant | -9/Materials Mutant | -9/Storage Resources | -11 -10 -9 -9 ----------- Run | Yrd Mat Mat Sto Matter Collected 671 | 230 149 221 71 Remotely . | . . . . Salvage Created 1025 | . 553 383 89 Parts 60 | . 32 20 8 Haulers Intercepted . | . . . . Recyclers Shooed . | . . . . Parts Field Recycled . | . . . . Retrieved Matter . | . . . . Parts Self-Destructed . | . . . . Prevented . | . . . . Kills | -11 -10 -9 -9 ------- Run | Yrd Mat Mat Sto Combat Hostiles Destroyed 23 | . 9 12 2 Guns 22 | . 9 11 2 Classes Destroyed 9 | . 5 3 1 Worker 1 | . 1 . . Recycler 1 | . 1 . . Operator 2 | . 2 . . Watcher 2 | . 1 1 . Swarmer 3 | . . 3 . Grunt 14 | . 9 5 . Brawler 1 | . . 1 . Protector 1 | . . . 1 Sentry 4 | . . 3 1 Best Kill Streak 4 | . 4 4 1 Combat Bots Only 4 | . 3 4 1 Max Kills in Single Turn 2 | . 2 1 1 Gunslinging . | . . . . Exploded . | . . . . Melee . | . . . . Uniques/NPCs Destroyed . | . . . . Combat | -11 -10 -9 -9 -------- Run | Yrd Mat Mat Sto Hostile Shots Fired 214 | . 102 78 34 Missed 64 | . 40 16 8 Damage Taken 2324 | . 757 888 679 Core 632 | . 204 317 111 Absorbed by Shields . | . . . . Redirected to Shielding 38 | . 15 9 14 Core Remaining (%) 59 | 100 18 . . Volleys Fired 129 | . 54 59 16 Largest 2 | . 2 2 2 Hottest 130 | . 65 130 46 Shots Fired 172 | . 81 68 23 Gun 172 | . 81 68 23 Cannon . | . . . . Launcher . | . . . . Special . | . . . . Kinetic 45 | . 27 . 18 Thermal 98 | . 25 68 5 Explosive . | . . . . Electromagnetic 29 | . 29 . . Robot Hit Streak 23 | . 10 11 23 Robot Miss Streak 5 | . 4 5 1 Penetration Max . | . . . . Secondary Targets . | . . . . Shots Hit Robots 120 | . 49 51 20 Core Hits 64 | . 27 32 5 Critical Kills . | . . . . Critical Parts Destroyed . | . . . . Critical Strikes 4 | . 1 3 . Burn 4 | . 1 3 . Melee Attacks . | . . . . Impact . | . . . . Slashing . | . . . . Piercing . | . . . . Sneak Attacks . | . . . . Combat Hostiles . | . . . . Follow-up Attacks . | . . . . Damage Inflicted 1757 | . 769 694 294 Guns 1727 | . 741 692 294 Cannons . | . . . . Explosions 25 | . 25 . . Melee . | . . . . Ramming 5 | . 3 2 . Kinetic 441 | . 181 . 260 Thermal 1074 | . 348 692 34 Explosive . | . . . . Electromagnetic 237 | . 237 . . Impact . | . . . . Slashing . | . . . . Piercing . | . . . . Highest Corruption 18 | . 7 18 18 Average Corruption 13 | . 3 17 18 Corruption Purged . | . . . . Corruption Blocked . | . . . . Effects 27 | . 5 16 6 Message Errors 8 | . 3 3 2 Matter Fused 5 | . 1 3 1 Heat Flow Errors 3 | . . 3 . Energy Discharges 3 | . . 2 1 Data Loss (minor) 1 | . . . 1 Misfires 2 | . . 2 . Alerts 2 | . . 2 . Weapon Failures 3 | . 1 1 1 Overload Shots . | . . . . Overflow Damage . | . . . . Projectiles . | . . . . Explosions . | . . . . Melee . | . . . . Knockbacks . | . . . . Impact . | . . . . Kinetic . | . . . . Secondary . | . . . . Self-Inflicted Damage 1 | . . 1 . Shots . | . . . . Rammed 4 | . 3 1 . Targets Rammed 5 | . 4 1 . Kicked 1 | . 1 . . Crushed . | . . . . Highest Temperature 474 | . 271 474 4 Average Temperature 84 | . 69 109 3 Received Heat Transfer 843 | . 471 285 87 Effects 4 | . 1 3 . Energy Bleed 2 | . 1 1 . Short Circuit 2 | . . 2 . Siege Activations . | . . . . Robots Corrupted . | . . . . Combat Hostiles . | . . . . Parts Fried 1 | . 1 . . Impact Corruptions . | . . . . Robots Melted 1 | . . 1 . Combat Hostiles 1 | . . 1 . Parts Melted 3 | . . 3 . Heat Transferred 2572 | . 877 1627 68 Parts Sabotaged . | . . . . Parts Stolen . | . . . . Parts Stripped . | . . . . Power Chain Reactions 1 | . 1 . . Alert | -11 -10 -9 -9 ------- Run | Yrd Mat Mat Sto Peak Influence 281 | . 281 250 236 Initial 92 | . . 45 92 Average 105 | . 99 113 138 Maximum Alert Level 1 | . 1 1 1 Low Security (%) 87 | 100 90 86 79 Level 1 12 | . 9 13 20 Level 2 . | . . . . Level 3 . | . . . . Level 4 . | . . . . Level 5 . | . . . . High Security . | . . . . Max Security . | . . . . Squads Dispatched 8 | . 4 1 3 Investigation 4 | . 2 1 1 Extermination . | . . . . Reinforcement 2 | . 2 . . Assault 2 | . . . 2 Garrison . | . . . . Intercept . | . . . . Searches Triggered . | . . . . Construction Impeded . | . . . . Haulers Reinforced . | . . . . Active Scanning Responses . | . . . . Cargo Convoy Interrupts . | . . . . Stealth | -11 -10 -9 -9 --------- Run | Yrd Mat Mat Sto Distress Signals 2 | . . 2 . Communications Jammed . | . . . . Distress Signals . | . . . . Times Spotted 51 | . 18 20 13 Peak Tracking Total 9 | . 5 5 9 Tactical Retreats 3 | . 2 1 . Traps | -11 -10 -9 -9 ------- Run | Yrd Mat Mat Sto Traps Triggered 3 | . 3 . . Indirectly . | . . . . Trap Hack Attempts . | . . . . Triggered . | . . . . Disarmed 3 | . . 3 . Reprogrammed . | . . . . Reused . | . . . . Traps Extracted . | . . . . Installed . | . . . . Triggered . | . . . . Machines | -11 -10 -9 -9 ---------- Run | Yrd Mat Mat Sto Machines Disabled 1 | . 1 . . Max in Single Turn 1 | . 1 . . Machines Repaired . | . . . . Machines Dismantled . | . . . . Machines Sabotaged . | . . . . Overloaded Fab Kills . | . . . . Hacking | -11 -10 -9 -9 --------- Run | Yrd Mat Mat Sto Machines Accessed 8 | . 3 4 1 Terminals 8 | . 3 4 1 Fabricators . | . . . . Repair Stations . | . . . . Recycling Units . | . . . . Scanalyzers . | . . . . Garrison Access . | . . . . Total Hacks 25 | . 9 12 4 Successful 11 | . 5 6 . Failed 14 | . 4 6 4 Catastrophic 7 | . 2 3 2 Database Lockouts . | . . . . Manual . | . . . . Terminals 25 | . 9 12 4 Fabricators . | . . . . Repair Stations . | . . . . Recycling Units . | . . . . Scanalyzers . | . . . . Garrison Access . | . . . . Terminal Hacks 11 | . 5 6 . Prototype ID Bank 1 | . 1 . . Locate Traps 2 | . . 2 . Disarm Traps 1 | . . 1 . Dispatch Records 1 | . . 1 . Maintenance Status 1 | . . 1 . Security Status 1 | . 1 . . Reinforcement Status 1 | . 1 . . Hauler Manifests 1 | . 1 . . Registered Components 1 | . 1 . . Zone Layout 1 | . . 1 . Fabricator Hacks . | . . . . Repair Station Hacks . | . . . . Recycling Unit Hacks . | . . . . Scanalyzer . | . . . . Garrison Access Hacks . | . . . . Unauthorized Hacks . | . . . . Terminals . | . . . . Fabricators . | . . . . Repair Stations . | . . . . Recycling Units . | . . . . Scanalyzers . | . . . . Garrison Access . | . . . . Data Cores Recovered 1 | . 1 . . Used . | . . . . Hacking Detections 7 | . 3 3 1 Full Trace Events 6 | . 2 3 1 Feedback Events . | . . . . Feedback Blocked . | . . . . Robot Schematics Acquired . | . . . . Robots Built . | . . . . Authchips . | . . . . Time . | . . . . Total Robot Build Rating . | . . . . Part Schematics Acquired . | . . . . Parts Built . | . . . . Authchips . | . . . . Time . | . . . . Total Part Build Rating . | . . . . Parts Repaired . | . . . . Time . | . . . . Parts Recycled . | . . . . Recycled Matter . | . . . . Retrieved Matter . | . . . . Retrieved Components . | . . . . Parts Scanalyzed . | . . . . Part Schematics Acquired . | . . . . Parts Damaged . | . . . . Bothacking | -11 -10 -9 -9 ------------ Run | Yrd Mat Mat Sto Used RIF Installer . | . . . . Robots Hacked . | . . . . Non-combat . | . . . . Combat . | . . . . Robot Hacks Applied . | . . . . Relay Couplers Released . | . . . . Fabnet Peak Effective % . | . . . . Robots Rewired . | . . . . Allies Hacked . | . . . . Hacks Repelled . | . . . . Allies | -11 -10 -9 -9 -------- Run | Yrd Mat Mat Sto Total Allies 2 | . . . 2 Largest Group 2 | . . . 2 Highest-Rated Group 62 | . . . 62 Highest-Rated Ally 31 | . . . 31 Total Orders . | . . . . Ally Attacks 25 | . . . 25 Total Damage 430 | . . . 430 Kills 5 | . . . 5 Allies Corrupted . | . . . . Allies Melted . | . . . . Intel | -11 -10 -9 -9 ------- Run | Yrd Mat Mat Sto Robot Analysis Total . | . . . . Derelict Logs Recovered . | . . . . Drone Launches . | . . . . Drone Recoveries . | . . . . Exploration | -11 -10 -9 -9 ------------- Run | Yrd Mat Mat Sto Turns Passed 1336 | 59 533 624 120 Spaces Moved 725 | 46 275 341 63 Core 117 | 23 13 81 . Treads 103 | 23 80 . . Legs 182 | . 182 . . Wheels 214 | . . 151 63 Hover 36 | . . 36 . Flight 73 | . . 73 . Fastest Speed 50 | 50 100 90 90 Average Speed 124 | 105 137 123 90 Slowest Speed 250 | 160 190 250 90 Overloaded Moves . | . . . . Propulsion Burnouts . | . . . . Robots Hopped . | . . . . Cave-ins Triggered . | . . . . Exploration Rate (%) 26 | 3 53 35 13 Regions Visited 3 Branch Regions 1 Pre-discovered Areas . | . . . . Known Exits Taken 1 | . . 1 . Unknown Exits Taken 2 | 1 1 . . Scrap Searched . | . . . . Spaces Dug . | . . . . Terrain Destroyed 3 | . 3 . . Melee . | . . . . Projectile . | . . . . AOE 3 | . 3 . . Terrain Rammed . | . . . . Walls Destroyed . | . . . . Machines Disabled . | . . . . Actions | -11 -10 -9 -9 --------- Run | Yrd Mat Mat Sto Total 985 | 56 347 479 103 Wait 41 | . . 27 14 Move 722 | 45 274 340 63 Hop . | . . . . Pick Up 39 | 5 8 23 3 Fast Attach 1 | 1 . . . Attach 32 | 5 5 19 3 Detach . | . . . . Swap 4 | . . 2 2 Drop 12 | . 2 8 2 Fire 129 | . 54 59 16 Melee . | . . . . Ram 4 | . 3 1 . Kick 1 | . 1 . . Crush . | . . . . Escape Stasis . | . . . . Rewire . | . . . . Trap . | . . . . Miscellaneous . | . . . . Route ------- -11/Scrapyard -10/Materials (discovered 3 exits: *Mat x2 / [*Min]) -9/Materials (discovered 3 exits: [*Min] / *Sto x2) -9/Storage History --------- Turn | Location | Event 6 | -11/Scrapyard | Discovered new exit (range 16) 60 | -11/Scrapyard | Entered Materials 155 | -10/Materials | Discovered new exit (range 6) 231 | -10/Materials | Discovered new exit (range 3) 317 | -10/Materials | Build established: Mutant 400 | -10/Materials | Discovered new exit (range 5) 498 | -10/Materials | Core integrity fell below 50% 505 | -10/Materials | Lost 3 parts (1n2w) 560 | -10/Materials | Derelicts attacked the area 577 | -10/Materials | Core integrity fell below 20% 593 | -10/Materials | Entered another Materials area 593 | -9/Materials | Evolved 2 slots: Utility x2 596 | -9/Materials | Discovered new exit (range 6) 599 | -9/Materials | Lost 3 parts (1p1n1w) 910 | -9/Materials | System corruption reached 10% 922 | -9/Materials | Core integrity fell below 50% 959 | -9/Materials | Lost 7 parts (1p2n3u1w) 1091 | -9/Materials | Discovered new exit (range 16) 1203 | -9/Materials | Discovered new exit (range 5) 1215 | -9/Materials | Identified exit to Storage 1217 | -9/Materials | Entered Storage 1235 | -9/Storage | Met a pair of Derelict thieves 1249 | -9/Storage | Core integrity fell below 20% 1337 | -9/Storage | Destroyed by L-31 Rogue with Katana Last Messages --------------- G-47 Trooper unfolds itself. L-31 Rogue unfolds itself. I-25 Savior unfolds itself. Ion Engine destroyed. G-34 Mercenary destroyed. Imp. Assault Rifle severed. R-06 Scavenger collects Imp. Assault Rifle. AO-5VK(g) destroyed. R-06 Scavenger collects Aluminum Leg. Sensor Array destroyed. Acquired 41 matter. Arm. Wheel destroyed. I-25 Savior destroyed. Imp. Assault Rifle severed. G-34 Mercenary suffers critical hit (Burn). QB-GM3(g) destroyed. AXLNKRK/DFOUWHRL#HD5MCK Imp. Assault Rifle destroyed. Arm. Wheel severed. Imp. Targeting Computer destroyed. Map ----- +----------------------------------------------------+ | ????????????????????????????????????????????????? | | ????????????????????????????????????????????????? | | ????????????????????????????????????????????????? | | ????????????????????????????????????????????????? | | ????????????????????????????????????????????????? | | ????????????????????????????????????????????????? | | ????????????????????????????????????????????????? | | ????????????????????????????????????????????????? | | ????????????????????????????????????????????????? | | ????????????????????????????????????????????????? | | ????????????????????????????????????????????????? | | ????????????????????????????????????????????????? | | ????????????????????????????????????????????????? | | ????????????????????????????????????????????????? | | ????????????????????????????????????????????????? | | ????????????????????????????????????????????????? | | ????????????????????????????????????????????????? | | ????????????????????????????????????????????????? | | ????????????????????????????????????????????????? | | ?????????????#####??????????????????????????????? | | ?????????????? !?????????##??????????????????? | | ??????????????? ########%#####??????????????? | | ?????????????????"" # *[# *= #??????????????? | | ???????????????????%/%=!# ###????????????? | | ????????????????????#!% # ""#????????????? | | ????????????????????# *#@= ""#????????????? | | ????????????????????# [gl ! T"#????????????? | | ????????????????????# =l# !%!!!!""#????????????? | | ????????????????????# !g# *! !!!""#????????????? | | ????????????????????# * # !! ###????????????? | | ????????????????????# # #??????????????? | | ????????????????????# ##########??????????????? | | ????????????######??# #####???????????????????? | | ????????????#] ] #### # ##??????????????????? | | ????????????# ]] #T## + T#??????????????????? | | ????????????# " *# ##""##??????????????????? | | ????????????# %+ #???????????????????????? | | ????????????#[ " # #???????????????????????? | | ????????????#[[ # # #???????????????????????? | | ????????????######### #???????????????????????? | | ????????????????????# #???????????????????????? | | ???????????????????## ##??????????????????????? | | ???????????????????# ###########????????????? | | ???????????????????# #????????????? | | ???????????????????# #????????????? | | ???????????????????# = #????????????? | | ???????????????????# ###########????????????? | | ???????????????????#######??????????????????????? | | ????????????????????????????????????????????????? | | ????????????????????????????????????????????????? | +----------------------------------------------------+ Best States ------------- Heat Dissipation 42 Energy Generation 14 Energy Capacity 265 Matter Stores 300 Matter Capacity 300 Sight Range 16 Robot Scan Range 14 Terrain Scan Density 10 Additional Mass Support 6 Power Shielding 33 Utility Shielding 33 Evasion (%) 55 Targeting Accuracy 6 Recoil Reduction 2 Item Schematics ----------------- None Robot Schematics ------------------ None Fabricated ------------ Nothing Alien Tech Used ----------------- None Achievements -------------- None Challenges ------------ None Game ------ Seed DeuteriumAssemblyScanner Manual? 0 Play Time 00:21:52 Cumulative 7.6 hours Start 2024.05.29 @ 14:44:48 End 2024.05.29 @ 15:04:14 Sessions 1 Manual Loads 0 Difficulty Rogue Special Mode None Game No. 18 Rogue 18 Adventurer 0 Explorer 0 Win Type - Total 0 Types 0/0/0/0/0/0/0/0/0 Lore% 10 Gallery% 14 Achievement% 10 Wizard Run 0 Options --------- Layout 1 ASCII 0 Keyboard 0 Movement Mouse Keybinds 0 Fullscreen 1 Font 24/Smallcaps Map View 50x35 Zoom Use 0% Tactical HUD 0 Map Filters NONE Filters NONE Steam 1 RUN: c9b54f4a-b131-47af-8ea3-d42a07e9e565